fUST/lending_fUST_20250916
["ID","MTS","AMOUNT","RATE_DAILY","PERIOD"]
[385717868,1757987444067,-766.7,0.00024388,3]
[385717869,1757987444283,-517.86001024,0.00024388,3]
[385717870,1757987444293,-480.0,0.00024388,3]
[385717871,1757987444302,-480.0,0.00024388,3]
[385717872,1757987444312,-220.64685987,0.00024389,3]
[385717873,1757987444321,-480.0,0.00024389,3]
[385717874,1757987444331,-163.29157337,0.000244,2]
[385717875,1757987444340,-360.0,0.00024546,2]
[385717876,1757987444349,-1012.71049064,0.00024576,2]
[385717877,1757987444359,-163.29157337,0.000246,2]
[385717878,1757987444368,-417.93809339,0.00024661,3]
[385717879,1757987444377,-712.81,0.00024661,3]
[385717880,1757987444386,-480.0,0.00024661,3]
[385717881,1757987444395,-480.0,0.00024661,3]
[385717882,1757987444404,-766.7,0.00024662,3]
[385717883,1757987444414,-480.0,0.00024662,3]
[385717884,1757987444423,-480.0,0.00024662,3]
[385717885,1757987444432,-480.0,0.00024663,3]
[385717886,1757987444441,-159.64446373,0.00024747,8]
[385717887,1757987444450,-2054.8,0.000248,7]
[385717888,1757987444459,-204.8033691,0.00024872,2]
[385717889,1757987444468,-8046.2676167,0.00024872,2]
[385717890,1757987444477,-23784.929122,0.00024872,2]
[385717891,1757987444486,-500.0,0.00024873,2]
[385717892,1757987444495,-502.34417217,0.00024873,2]
[385717893,1757987444506,-501.02164031,0.00024873,2]
[385717894,1757987444515,-502.64931881,0.00024873,2]
[385717895,1757987444524,-501.57405516,0.00024873,2]
[385717896,1757987444533,-500.68439844,0.00024873,2]
[385717897,1757987444543,-500.76270565,0.00024873,2]
[385717898,1757987444552,-500.0,0.00024873,2]
[385717899,1757987444561,-500.0,0.00024873,2]
[385717900,1757987444570,-501.79863266,0.00024873,2]
[385717901,1757987444579,-1117.87451566,0.000249,2]
[385717902,1757987444588,-163.29157337,0.000249,2]
[385717903,1757987444598,-303894.47173262,0.000249,2]
[385717904,1757987444659,-534.94906441,0.000249,2]
[385717905,1757987444670,-1372.13797745,0.000249,2]
[385717906,1757987444682,-294.54076015,0.000249,2]
[385717912,1757987455826,8000.0,0.00028,30]
[385717913,1757987591956,8000.0,0.00028,30]
[385717915,1757987602645,8000.0,0.00028,30]
[385717916,1757987641355,20000.0,0.00028,30]
[385717917,1757987658413,25000.0,0.00028,30]
[385717918,1757987658852,209.0,0.0002776,30]
[385717919,1757987683880,8289.0,0.00028,30]
[385717920,1757987731554,1244.13088296,0.00030154,120]
[385717921,1757987775921,301.0596929,0.00027726,30]
[385717938,1757988369505,-247.19817501,0.00020672,2]
[385717939,1757988373498,500.0,0.00020525,2]
[385717940,1757988378287,500.0,0.00020525,2]
[385717941,1757988383000,500.0,0.00020525,2]
[385717943,1757988392419,247.19817501,0.000206,2]
[385717944,1757988393040,453.68345598,0.00020422,4]
[385717946,1757988431000,266.034348,0.00023288,30]
[385717947,1757988451119,-488.3041891,0.00020627,4]
[385717948,1757988451139,-207.79101637,0.00020672,2]
[385717949,1757988546672,1000.0,0.00028,30]
[385717950,1757988621043,946.8,0.00027767,120]
[385718080,1757988637967,-45.01080862,0.00020672,2]
[385718082,1757988637977,-263.8770464,0.00020991,2]
[385718084,1757988637986,-296.097688,0.00020993,2]
[385718086,1757988637996,-217.123418,0.00021431,2]
[385718088,1757988638005,-217.59171313,0.00021431,2]
[385718090,1757988638014,-399.7358918,0.00021431,2]
[385718091,1757988638023,-500.0,0.0002176,2]
[385718092,1757988638032,-300.0,0.00021987,2]
[385718093,1757988638041,-300.0,0.00021987,2]
[385718094,1757988638051,-1200.0,0.00021987,2]
[385718095,1757988638060,-8549.1839143,0.00021988,2]
[385718096,1757988638070,-1200.0,0.00021988,2]
[385718097,1757988638080,-631.32672123,0.00021988,2]
[385718098,1757988638090,-500.0,0.00021988,2]
[385718099,1757988638100,-500.0,0.00021988,2]
[385718100,1757988638110,-500.0,0.00021988,2]
[385718101,1757988638119,-500.0,0.00021988,2]
[385718102,1757988638128,-500.0,0.00021988,2]
[385718103,1757988638139,-500.0,0.00021988,2]
[385718104,1757988638148,-500.0,0.00021988,2]
[385718105,1757988638156,-500.0,0.00021988,2]
[385718106,1757988638165,-500.0,0.00021988,2]
[385718107,1757988638174,-201.36746816,0.00021988,2]
[385718108,1757988638183,-447.81764143,0.00021988,2]
[385718109,1757988638191,-336.33941551,0.00021988,2]
[385718110,1757988638200,-500.0,0.00021988,2]
[385718111,1757988638210,-500.0,0.00021988,2]
[385718112,1757988638219,-480.0,0.00021989,3]
[385718113,1757988638228,-475.81677073,0.00021989,3]
[385718114,1757988638237,-247.99122266,0.00021989,3]
[385718115,1757988638246,-480.0,0.00021989,3]
[385718116,1757988638255,-480.0,0.00021989,3]
[385718117,1757988638265,-480.0,0.00021989,3]
[385718118,1757988638274,-304.27847859,0.00021989,3]
[385718119,1757988638283,-480.0,0.00021989,3]
[385718120,1757988638292,-470.50694727,0.00021989,3]
[385718121,1757988638301,-480.0,0.00021989,3]
[385718122,1757988638310,-627.64192184,0.00021989,3]
[385718123,1757988638320,-480.0,0.00021989,3]
[385718124,1757988638328,-480.0,0.00021989,3]
[385718125,1757988638339,-480.0,0.00021989,3]
[385718126,1757988638348,-480.0,0.00021989,3]
[385718127,1757988638356,-334.15664772,0.00021989,3]
[385718128,1757988638366,-480.0,0.00021989,3]
[385718129,1757988638375,-480.0,0.00021989,3]
[385718130,1757988638385,-20567.1914319,0.0002199,2]
[385718131,1757988638394,-212.2037365,0.00021998,2]
[385718132,1757988638402,-900.25905269,0.00022,2]
[385718133,1757988638411,-741.18351302,0.00022,2]
[385718134,1757988638420,-500.0,0.00022073,2]
[385718135,1757988638429,-315.44323192,0.00022073,2]
[385718136,1757988638438,-480.0,0.00022092,3]
[385718137,1757988638447,-345.27893656,0.00022092,3]
[385718138,1757988638456,-466.22347238,0.00022092,3]
[385718139,1757988638465,-480.0,0.00022092,3]
[385718140,1757988638474,-466.68839696,0.00022092,3]
[385718141,1757988638483,-466.49735309,0.00022092,3]
[385718142,1757988638492,-480.0,0.00022092,3]
[385718143,1757988638503,-461.76055794,0.00022092,3]
[385718144,1757988638514,-352.07008905,0.00022092,3]
[385718145,1757988638523,-480.0,0.00022092,3]
[385718146,1757988638532,-427.5135894,0.00022092,3]
[385718147,1757988638541,-480.0,0.00022092,3]
[385718148,1757988638550,-480.0,0.00022092,3]
[385718149,1757988638559,-529.99009797,0.00022092,3]
[385718150,1757988638568,-473.93122862,0.00022092,3]
[385718151,1757988638577,-480.0,0.00022092,3]
[385718152,1757988638586,-470.26904295,0.00022092,3]
[385718153,1757988638595,-480.0,0.00022092,3]
[385718154,1757988638605,-480.0,0.00022092,3]
[385718155,1757988638615,-497.14577187,0.00022092,3]
[385718156,1757988638624,-203.94833334,0.00022092,2]
[385718157,1757988638633,-361.03759951,0.00022092,2]
[385718158,1757988638644,-655.00033403,0.00022092,2]
[385718159,1757988638653,-655.00033403,0.00022092,2]
[385718160,1757988638662,-655.00033403,0.00022092,2]
[385718161,1757988638672,-655.00033403,0.00022092,2]
[385718162,1757988638681,-655.00033403,0.00022092,2]
[385718163,1757988638692,-655.00033403,0.00022092,2]
[385718164,1757988638701,-655.00033403,0.00022092,2]
[385718165,1757988638711,-655.00033403,0.00022092,2]
[385718166,1757988638720,-655.00033403,0.00022092,2]
[385718167,1757988638730,-655.00033403,0.00022092,2]
[385718168,1757988638739,-655.00033403,0.00022092,2]
[385718169,1757988638748,-489.02442764,0.00022093,3]
[385718170,1757988638759,-322.86375671,0.00022093,3]
[385718171,1757988638770,-204.47315676,0.00022093,3]
[385718172,1757988638781,-480.0,0.00022093,3]
[385718173,1757988638792,-480.0,0.00022093,3]
[385718174,1757988638803,-569.55057039,0.00022093,3]
[385718175,1757988638812,-463.00955673,0.00022093,3]
[385718176,1757988638824,-465.75296969,0.00022093,3]
[385718177,1757988638833,-462.52038613,0.00022093,3]
[385718178,1757988638844,-480.0,0.00022093,3]
[385718179,1757988638853,-243.29623334,0.00022093,3]
[385718180,1757988638863,-463.07704881,0.00022093,3]
[385718181,1757988638872,-475.74586565,0.00022093,3]
[385718182,1757988638881,-480.0,0.00022093,3]
[385718183,1757988638890,-480.0,0.00022093,3]
[385718184,1757988638899,-467.17473622,0.00022093,3]
[385718185,1757988638911,-487.83814807,0.00022093,3]
[385718186,1757988638920,-464.54992872,0.00022093,3]
[385718187,1757988638929,-472.77516837,0.00022093,3]
[385718188,1757988638938,-480.0,0.00022093,3]
[385718189,1757988638947,-467.68271114,0.00022093,3]
[385718190,1757988638955,-238.95199552,0.00022093,3]
[385718191,1757988638965,-338.92895351,0.00022093,3]
[385718192,1757988638974,-236.16169356,0.00022093,3]
[385718193,1757988638983,-480.0,0.00022093,3]
[385718194,1757988638992,-432.69235482,0.00022093,3]
[385718195,1757988639001,-480.0,0.00022093,3]
[385718196,1757988639010,-480.0,0.00022093,3]
[385718197,1757988639019,-622.6002485,0.00022093,3]
[385718198,1757988639029,-512.02354938,0.00022093,3]
[385718199,1757988639038,-369.70982665,0.00022093,3]
[385718200,1757988639047,-754.76,0.00022094,3]
[385718201,1757988639057,-480.0,0.00022094,3]
[385718202,1757988639067,-480.0,0.00022094,3]
[385718203,1757988639076,-480.0,0.00022094,3]
[385718204,1757988639086,-480.0,0.00022094,3]
[385718205,1757988639096,-151.0,0.00022094,3]
[385718206,1757988639124,-480.0,0.00022094,3]
[385718207,1757988639149,-480.0,0.00022094,3]
[385718208,1757988639186,-153.01437502,0.00022094,3]
[385718209,1757988639218,-480.0,0.00022094,3]
[385718210,1757988639227,-555.83620279,0.00022095,2]
[385718211,1757988639236,-370000.0,0.00022096,2]
[385718212,1757988639246,-7987.31,0.000221,7]
[385718213,1757988639255,-894.9,0.000221,7]
[385718214,1757988639264,-500.0,0.00022173,2]
[385718215,1757988639273,-500.0,0.00022173,2]
[385718216,1757988639282,-500.0,0.00022173,2]
[385718217,1757988639291,-500.0,0.00022173,2]
[385718218,1757988639301,-500.0,0.00022173,2]
[385718219,1757988639310,-500.0,0.00022173,2]
[385718220,1757988639319,-500.0,0.00022173,2]
[385718221,1757988639329,-500.0,0.00022173,2]
[385718222,1757988639343,-500.0,0.00022173,2]
[385718223,1757988639353,-150.0,0.00022173,2]
[385718224,1757988639364,-500.0,0.00022173,2]
[385718225,1757988639374,-500.0,0.00022173,2]
[385718227,1757988639386,-500.0,0.00022173,2]
[385718228,1757988639395,-364.95903581,0.00022173,2]
[385718229,1757988639405,-500.0,0.00022173,2]
[385718230,1757988639419,-480.0,0.00022194,3]
[385718231,1757988639432,-151.0,0.00022194,3]
[385718232,1757988639442,-153.8507711,0.00022194,3]
[385718233,1757988639451,-480.0,0.00022194,3]
[385718234,1757988639463,-207.73101848,0.00022194,3]
[385718235,1757988639474,-503.46878029,0.00022194,3]
[385718236,1757988639483,-368.58497926,0.00022194,3]
[385718237,1757988639492,-473.94496437,0.00022194,3]
[385718238,1757988639503,-480.0,0.00022194,3]
[385718239,1757988639512,-239.8674706,0.00022194,3]
[385718240,1757988639521,-480.0,0.00022194,3]
[385718241,1757988639531,-256.6452128,0.00022194,3]
[385718242,1757988639540,-480.0,0.00022194,3]
[385718243,1757988639550,-480.0,0.00022194,2]
[385718244,1757988639559,-509.10490172,0.00022194,3]
[385718245,1757988639568,-231.53961664,0.00022194,3]
[385718246,1757988639577,-475.4143017,0.00022194,3]
[385718247,1757988639586,-469.61158345,0.00022194,3]
[385718248,1757988639596,-480.0,0.00022195,3]
[385718249,1757988639606,-480.0,0.00022195,3]
[385718250,1757988639616,-466.98478424,0.00022195,3]
[385718251,1757988639626,-467.70068758,0.00022195,3]
[385718252,1757988639637,-474.28730421,0.00022195,3]
[385718253,1757988639646,-465.67267672,0.00022195,3]
[385718254,1757988639656,-498.61244455,0.00022195,3]
[385718255,1757988639666,-467.45736426,0.00022195,3]
[385718256,1757988639676,-1009.19979243,0.00022195,3]
[385718257,1757988639685,-468.02304665,0.00022195,3]
[385718258,1757988639695,-481.37075762,0.00022195,3]
[385718259,1757988639706,-480.0,0.00022195,3]
[385718260,1757988639716,-575.14382805,0.00022195,3]
[385718261,1757988639725,-480.0,0.00022195,3]
[385718262,1757988639735,-462.99820776,0.00022195,3]
[385718263,1757988639744,-450.24233419,0.00022195,3]
[385718264,1757988639753,-248.7337536,0.00022195,3]
[385718265,1757988639762,-469.6489429,0.00022195,3]
[385718266,1757988639772,-463.9029876,0.00022195,3]
[385718267,1757988639781,-462.64317986,0.00022195,3]
[385718268,1757988639791,-487.62720452,0.00022195,3]
[385718269,1757988639800,-465.17336725,0.00022195,3]
[385718271,1757988639809,-480.0,0.00022195,3]
[385718273,1757988639818,-468.10708715,0.00022195,3]
[385718275,1757988639828,-480.0,0.00022195,3]
[385718277,1757988639837,-501.09622338,0.00022195,3]
[385718279,1757988639847,-469.53622093,0.00022195,3]
[385718281,1757988639856,-468.05828872,0.00022195,3]
[385718283,1757988639866,-179.59981203,0.00022196,3]
[385718285,1757988639876,-469.28988979,0.00022196,3]
[385718287,1757988639885,-597.9102473,0.00022196,3]
[385718288,1757988639895,-472.93322358,0.00022196,3]
[385718289,1757988639904,-471.09775329,0.00022196,3]
[385718290,1757988639913,-473.46584733,0.00022196,3]
[385718291,1757988639922,-468.86698764,0.00022196,3]
[385718292,1757988639931,-563.84058516,0.00022196,3]
[385718293,1757988639941,-466.31683431,0.00022196,3]
[385718294,1757988639950,-468.97165775,0.00022196,3]
[385718295,1757988639959,-153.28145439,0.00022196,3]
[385718296,1757988639969,-463.0992326,0.00022196,3]
[385718297,1757988639978,-465.28226658,0.00022196,3]
[385718298,1757988639987,-525.30946545,0.00022196,3]
[385718299,1757988639998,-462.25045267,0.00022196,3]
[385718300,1757988640007,-475.40233142,0.00022196,3]
[385718301,1757988640017,-480.0,0.00022263,3]
[385718302,1757988640026,-480.0,0.00022263,3]
[385718303,1757988640035,-350.63043554,0.00022263,3]
[385718304,1757988640045,-302.27803816,0.00022263,3]
[385718305,1757988640054,-480.0,0.00022263,3]
[385718306,1757988640064,-333.74074367,0.00022263,3]
[385718307,1757988640075,-454.37713383,0.00022263,3]
[385718308,1757988640086,-480.0,0.00022263,3]
[385718309,1757988640097,-480.0,0.00022263,3]
[385718310,1757988640107,-480.0,0.00022263,3]
[385718311,1757988640117,-480.0,0.00022263,3]
[385718312,1757988640127,-480.0,0.00022263,3]
[385718313,1757988640136,-300.0,0.0002231,2]
[385718314,1757988640145,-299.0,0.00022347,2]
[385718315,1757988640154,-480.0,0.00022366,3]
[385718316,1757988640164,-230.09351721,0.00022366,3]
[385718317,1757988640173,-197.70069414,0.00022366,3]
[385718318,1757988640182,-480.0,0.00022366,3]
[385718319,1757988640194,-480.0,0.00022366,3]
[385718320,1757988640205,-362.53449741,0.00022366,3]
[385718321,1757988640214,-480.0,0.00022366,3]
[385718322,1757988640223,-480.0,0.00022366,3]
[385718323,1757988640233,-491.22033115,0.00022366,3]
[385718324,1757988640242,-165.82921655,0.00022367,3]
[385718325,1757988640251,-220.39414144,0.00022367,3]
[385718326,1757988640261,-480.0,0.00022367,3]
[385718327,1757988640271,-363.4786515,0.00022367,3]
[385718328,1757988640280,-480.0,0.00022367,3]
[385718329,1757988640289,-337.07848303,0.00022367,3]
[385718330,1757988640298,-480.0,0.00022367,3]
[385718331,1757988640308,-480.0,0.00022367,3]
[385718332,1757988640319,-466.02575553,0.00022367,3]
[385718333,1757988640330,-151.0,0.00022368,3]
[385718334,1757988640343,-754.76,0.00022368,3]
[385718335,1757988640352,-480.0,0.00022368,3]
[385718336,1757988640361,-621.74562662,0.00022368,3]
[385718337,1757988640371,-480.0,0.00022368,3]
[385718338,1757988640383,-480.0,0.00022368,3]
[385718339,1757988640393,-411.15419452,0.00022368,3]
[385718340,1757988640403,-480.0,0.00022368,3]
[385718341,1757988640413,-480.0,0.00022368,3]
[385718342,1757988640423,-450.0,0.00022447,2]
[385718343,1757988640432,-151.0,0.00022468,3]
[385718344,1757988640441,-480.0,0.00022468,3]
[385718345,1757988640451,-179.17362185,0.00022468,3]
[385718346,1757988640461,-480.0,0.00022468,3]
[385718347,1757988640472,-480.0,0.00022468,3]
[385718348,1757988640483,-247.27819196,0.00022468,3]
[385718349,1757988640493,-505.44926189,0.00022468,2]
[385718350,1757988640503,-534.75,0.00022469,3]
[385718351,1757988640512,-480.0,0.00022469,3]
[385718352,1757988640522,-162.25740872,0.00022469,3]
[385718353,1757988640532,-176.07166876,0.00022469,3]
[385718354,1757988640541,-480.0,0.00022469,3]
[385718355,1757988640550,-151.4407665,0.00022469,3]
[385718356,1757988640560,-300.0,0.00022537,20]
[385718357,1757988640570,-300.0,0.00022537,20]
[385718358,1757988640579,-300.0,0.00022537,20]
[385718359,1757988640588,-300.0,0.00022537,20]
[385718360,1757988640597,-300.0,0.00022537,20]
[385718361,1757988640607,-222.83391743,0.00022537,3]
[385718362,1757988640617,-480.0,0.00022537,3]
[385718363,1757988640626,-480.0,0.00022537,3]
[385718364,1757988640734,-480.0,0.00022537,3]
[385718365,1757988640745,-524.59698594,0.00022537,3]
[385718366,1757988640755,-480.0,0.00022537,3]
[385718367,1757988640765,-281.28738845,0.00022537,3]
[385718368,1757988640775,-480.0,0.00022537,3]
[385718369,1757988640784,-341.69769675,0.00022542,2]
[385718370,1757988640795,-900.25905267,0.00022572,2]
[385718371,1757988640806,-218.7943806,0.00022584,2]
[385718372,1757988640816,-502.05338767,0.00022621,2]
[385718373,1757988640826,-480.0,0.0002264,3]
[385718374,1757988640835,-480.0,0.0002264,3]
[385718375,1757988640848,-170.11373385,0.0002264,3]
[385718376,1757988640859,-480.0,0.0002264,3]
[385718377,1757988640869,-480.0,0.0002264,3]
[385718378,1757988640878,-480.0,0.00022641,3]
[385718379,1757988640887,-561.5897047,0.00022641,3]
[385718380,1757988640897,-311.15333133,0.00022641,3]
[385718381,1757988640906,-455.09,0.00022641,3]
[385718382,1757988640915,-159.9443348,0.00022642,3]
[385718383,1757988640925,-754.76,0.00022642,3]
[385718384,1757988640934,-480.0,0.00022642,3]
[385718385,1757988640944,-480.0,0.00022642,3]
[385718386,1757988640953,-480.0,0.00022642,3]
[385718387,1757988640962,-480.0,0.00022642,3]
[385718388,1757988640971,-480.0,0.00022642,3]
[385718389,1757988640981,-502.34057584,0.00022721,2]
[385718390,1757988640992,-1000.0,0.00022721,2]
[385718391,1757988641001,-1000.0,0.00022721,2]
[385718392,1757988641013,-1000.0,0.00022721,2]
[385718393,1757988641022,-500.21332873,0.00022721,2]
[385718394,1757988641032,-377.66485435,0.00022721,2]
[385718395,1757988641042,-752.35742438,0.00022721,2]
[385718396,1757988641051,-501.65878862,0.00022721,2]
[385718397,1757988641060,-1000.0,0.00022721,2]
[385718398,1757988641070,-1000.0,0.00022721,2]
[385718399,1757988641079,-502.14359043,0.00022721,2]
[385718400,1757988641088,-1000.0,0.00022721,2]
[385718401,1757988641097,-1000.0,0.00022721,2]
[385718402,1757988641107,-249.61445996,0.00022742,3]
[385718403,1757988641116,-563.99,0.00022742,3]
[385718404,1757988641126,-507.01,0.00022742,3]
[385718405,1757988641135,-480.0,0.00022742,3]
[385718406,1757988641145,-255.29,0.00022743,3]
[385718407,1757988641154,-213.07217785,0.00022743,3]
[385718408,1757988641163,-500.0,0.00022755,2]
[385718409,1757988641172,-500.0,0.00022755,2]
[385718410,1757988641181,-480.0,0.00022811,3]
[385718411,1757988641191,-480.0,0.00022811,3]
[385718412,1757988641201,-480.0,0.00022811,3]
[385718413,1757988641212,-480.0,0.00022811,3]
[385718414,1757988641221,-480.0,0.00022811,3]
[385718415,1757988641231,-500.0,0.00022905,2]
[385718416,1757988641241,-480.0,0.00022914,3]
[385718417,1757988641250,-310.59564127,0.00022914,3]
[385718418,1757988641259,-480.0,0.00022914,3]
[385718419,1757988641269,-480.0,0.00022914,3]
[385718420,1757988641279,-315.83974428,0.00022915,3]
[385718421,1757988641289,-754.76,0.00022916,3]
[385718422,1757988641300,-480.0,0.00022916,3]
[385718423,1757988641310,-480.0,0.00022916,3]
[385718424,1757988641321,-480.0,0.00022916,3]
[385718425,1757988641334,-480.0,0.00022916,3]
[385718426,1757988641352,-480.0,0.00022916,3]
[385718427,1757988641362,-500.0,0.0002297,2]
[385718428,1757988641372,-501.51113363,0.0002297,2]
[385718429,1757988641381,-500.0,0.0002297,2]
[385718430,1757988641391,-500.0,0.0002297,2]
[385718431,1757988641400,-233.24851325,0.00023,3]
[385718432,1757988641410,-847.61663983,0.00023,3]
[385718433,1757988641419,-480.0,0.00023016,3]
[385718434,1757988641429,-480.0,0.00023085,3]
[385718435,1757988641439,-264.16145078,0.00023085,3]
[385718436,1757988641448,-480.0,0.00023085,3]
[385718437,1757988641458,-522.90212271,0.00023085,3]
[385718438,1757988641467,-480.0,0.00023085,3]
[385718439,1757988641476,-900.25905267,0.00023143,2]
[385718440,1757988641486,-301.17731702,0.00023183,2]
[385718441,1757988641495,-480.0,0.00023188,3]
[385718442,1757988641505,-480.0,0.00023188,3]
[385718443,1757988641515,-480.0,0.00023188,3]
[385718444,1757988641524,-160.0,0.00023189,2]
[385718445,1757988641533,-754.76,0.0002319,3]
[385718446,1757988641542,-480.0,0.0002319,3]
[385718447,1757988641552,-480.0,0.0002319,3]
[385718448,1757988641562,-480.0,0.0002319,3]
[385718449,1757988641571,-480.0,0.0002319,3]
[385718450,1757988641581,-480.0,0.0002319,3]
[385718451,1757988641591,-1608.08863199,0.00023268,2]
[385718452,1757988641600,-1500.0,0.00023268,2]
[385718453,1757988641609,-1500.0,0.00023268,2]
[385718454,1757988641619,-1500.0,0.00023268,2]
[385718455,1757988641629,-1510.19796224,0.00023268,2]
[385718456,1757988641639,-1500.0,0.00023268,2]
[385718457,1757988641648,-1015.88487927,0.00023268,2]
[385718458,1757988641658,-1218.96,0.00023287,2]
[385718459,1757988641667,-480.0,0.0002329,3]
[385718460,1757988641676,-1000.0,0.00023303,2]
[385718461,1757988641686,-1000.0,0.00023303,2]
[385718462,1757988641695,-480.0,0.00023359,3]
[385718463,1757988641704,-480.0,0.00023359,3]
[385718464,1757988641713,-480.0,0.00023359,3]
[385718465,1757988641722,-480.0,0.00023462,3]
[385718466,1757988641731,-480.0,0.00023462,3]
[385718467,1757988641741,-480.0,0.00023462,3]
[385718468,1757988641750,-754.76,0.00023464,3]
[385718469,1757988641759,-480.0,0.00023464,3]
[385718470,1757988641768,-480.0,0.00023464,3]
[385718471,1757988641777,-480.0,0.00023464,3]
[385718472,1757988641786,-480.0,0.00023464,3]
[385718473,1757988641795,-480.0,0.00023464,3]
[385718474,1757988641815,-500.98431332,0.00023518,2]
[385718475,1757988641824,-1000.0,0.00023518,2]
[385718476,1757988641833,-1000.0,0.00023518,2]
[385718477,1757988641843,-480.0,0.00023564,3]
[385718478,1757988641853,-480.0,0.00023633,3]
[385718479,1757988641863,-480.0,0.00023633,3]
[385718480,1757988641872,-480.0,0.00023633,3]
[385718481,1757988641882,-900.25905267,0.00023715,2]
[385718482,1757988641891,-500.0,0.00023721,2]
[385718483,1757988641900,-480.0,0.00023736,3]
[385718484,1757988641909,-386.7407538,0.00023736,3]
[385718485,1757988641919,-399.2608514,0.00023736,3]
[385718486,1757988641927,-260.0,0.00023737,2]
[385718487,1757988641937,-754.76,0.00023738,3]
[385718488,1757988641946,-480.0,0.00023738,3]
[385718489,1757988641955,-480.0,0.00023738,3]
[385718490,1757988641964,-480.0,0.00023738,3]
[385718491,1757988641973,-480.0,0.00023738,3]
[385718492,1757988641982,-480.0,0.00023738,3]
[385718493,1757988641991,-507.25987822,0.00023816,2]
[385718494,1757988642000,-512.15441683,0.00023816,2]
[385718495,1757988642009,-1012.71049064,0.00023816,2]
[385718496,1757988642018,-2000.0,0.00023816,2]
[385718497,1757988642027,-509.50010323,0.00023838,3]
[385718498,1757988642036,-1500.0,0.00023851,2]
[385718499,1757988642045,-1500.0,0.00023851,2]
[385718500,1757988642054,-420.0,0.00023893,2]
[385718501,1757988642063,-480.0,0.00023907,3]
[385718502,1757988642072,-480.0,0.00023907,3]
[385718503,1757988642081,-480.0,0.00023907,3]
[385718504,1757988642091,-499.0,0.00024005,2]
[385718505,1757988642100,-480.0,0.0002401,3]
[385718506,1757988642109,-754.76,0.00024012,3]
[385718507,1757988642118,-480.0,0.00024012,3]
[385718508,1757988642127,-480.0,0.00024012,3]
[385718509,1757988642136,-517.86001024,0.00024012,3]
[385718510,1757988642145,-480.0,0.00024012,3]
[385718511,1757988642154,-480.0,0.00024012,3]
[385718512,1757988642163,-504.18871267,0.00024066,2]
[385718513,1757988642172,-500.0,0.00024111,2]
[385718514,1757988642181,-480.0,0.00024181,3]
[385718515,1757988642191,-480.0,0.00024181,3]
[385718516,1757988642200,-480.0,0.00024181,3]
[385718517,1757988642209,-500.0,0.0002419,2]
[385718518,1757988642218,-500.0,0.0002419,2]
[385718519,1757988642227,-500.75195611,0.0002419,2]
[385718520,1757988642236,-500.0,0.0002419,2]
[385718521,1757988642245,-500.0,0.0002419,2]
[385718522,1757988642254,-500.0,0.0002419,2]
[385718523,1757988642264,-160.0,0.00024249,2]
[385718524,1757988642273,-160.0,0.00024249,2]
[385718525,1757988642282,-160.0,0.00024249,2]
[385718526,1757988642291,-847.61663983,0.00024249,2]
[385718527,1757988642300,-233.29513139,0.00024249,2]
[385718528,1757988642309,-160.0,0.00024249,2]
[385718529,1757988642318,-160.0,0.00024249,2]
[385718530,1757988642327,-1004.6843169,0.00024269,2]
[385718531,1757988642337,-250.0,0.00024278,2]
[385718532,1757988642348,-501.79863266,0.00024282,2]
[385718533,1757988642358,-417.93809339,0.00024284,3]
[385718534,1757988642367,-360.0,0.00024285,2]
[385718535,1757988642376,-754.76,0.00024286,3]